Workbook

Sheet Introduction
B1: Grain Bag and Bin Storage
B2: Version 1.0 2021
B4: Aaron Smith, Associate Professor - Crop Marketing Specialist
B5: Office: (865) 974-7476 Email: aaron.smith@utk.edu
B6: Charles Martinez, Assistant Professor
B7: Office: (865) 974-7476 Email: cmart113@utk.edu
B8: Christopher R Narayanan, Extension Area Specialist III
B9: Hence Duncan, UT Extension Intern 2021
B19: The University of Tennessee is an EEO/AA/Title VI/Title IX/Section 504/ADA/ADEA institution in the provision of its education and employment programs and services. All qualified applicants will receive equal consideration for employment and admission without regard to race, color, national origin, religion, sex, pregnancy, marital status, sexual orientation, gender identity, age, physical or mental disability, genetic information, veteran status, and parental status.
B21: This project is supported by Tennessee Corn Promotion Board Grant, Award Number R124110176 and USDA/NIFA under Award Number 2018-70027-28585.

Sheet Bag
A1: Grain Bag Storage Estimate
A2: Table 1. Assumptions | E2: Table 2. Machinery Assumptions
B3: Value | C3: Unit | E3: Machinery | F3: Purchase Price ($) | G3: Useful Life (years) | H3: Salvage Value ($) | L3: Capital Recovery ($/Year) | M3: Repairs and Maintanance ($/Year) | N3: Taxes, Insurance, and Housing ($/Year) | O3: Fuel & Lubrication
A4: Acres | B4: 400 | C4: acres | E4: Loader | F4: 44801 | G4: 10 | H4: 5000 | K4: Loader | L4: =(F4-H4)*($B$15/(1-(1+$B$15)^-G4))+(H4*$B$15) -> 5107.102875 | M4: =(F4+H4)/2*B17 -> 996.02 | N4: =(F4+H4)/2*$B$16 -> 498.01 | O4: -
A5: Estimated Yield | B5: 200 | C5: bu/acre | E5: Unloader | F5: 50861 | G5: 10 | H5: 5000 | K5: Unloader | L5: =(F5-H5)*($B$15/(1-(1+$B$15)^-G5))+(H5*$B$15) -> 5854.245998 | M5: =(F5+H5)/2*B17 -> 1117.22 | N5: =(F5+H5)/2*$B$16 -> 558.61 | O5: -
A6: Estimated Production | B6: =B4*B5 -> 80000 | C6: bu | E6: Tractor | F6: 125000 | G6: 15 | H6: 10000 | K6: Tractor | L6: =((F6-H6)*($B$15/(1-(1+$B$15)^-G6))+(H6*$B$15))*G9 -> 537.1613271 | M6: =((F6+H6)/2*B17)*G9 -> 135 | N6: =((F6+H6)/2*$B$16)*G9 -> 67.5 | O6: =(0.06*F8*0.73*((B24+B25)*B11)*B13)*1.15 -> 180.606672
A7: Estimated Price | B7: 5 | C7: $/bu | K7: Total Machinery Costs | L7: =SUM(L4:L6) -> 11498.5102 | M7: =SUM(M4:M6) -> 2248.24 | N7: =SUM(N4:N6) -> 1124.12 | O7: =SUM(O4:O6) -> 180.606672
A8: Bag Size | B8: 16000 | C8: bu | E8: Tractor PTO HP | F8: 120
A9: Bag Weight | B9: 450 | C9: lbs | E9: Share of Tractor Annual Use | G9: 0.05 | L9: ASABE Agricultural Machinery Management | M9: Iowa State https://www.extension.iastate.edu/agdm/crops/html/a3-29.html | N9: Iowa State https://www.extension.iastate.edu/agdm/crops/html/a3-29.html | O9: ASABE Agricultural Machinery Management
A10: Bag Price | B10: 1100 | C10: $/bag
A11: # of Bags | B11: =ROUNDUP(B6/B8,0) -> 5 | C11: # (rounded up)
A12: Labor Rate | B12: 15.61 | C12: $/hr
A13: Diesel Price | B13: 2.49 | C13: $/gallon
A14: Interest Rate (Operating) | B14: 0.05 | C14: %
A15: Interest Rate (Fixed) | B15: 0.04 | C15: %
A16: Taxes, Insurance, & Housing | B16: 0.02 | C16: % of purchase price
A17: Repair and Maintenance | B17: 0.04 | C17: % of purchase price
A18: Estimated Shrinkage/Storage Loss | B18: 0.02 | C18: %
A20: Table 3. Estimated Costs
A21: Operating Costs | B21: Quantity | C21: Unit | D21: Number of people | E21: Cost per unit | F21: Unit | G21: Total Cost | H21: $/bu
A22: Site Preparation | B22: =B11 -> 5 | C22: bags | D22: - | E22: 5 | F22: $/bag | G22: =B22*E22 -> 25
A23: Bag | B23: =B11 -> 5 | C23: bags | D23: - | E23: =B10 -> 1100 | F23: $/bag | G23: =B23*E23 -> 5500
A24: Labor Loading per Bag | B24: 1.2 | C24: hrs/bag | D24: 2 | E24: =B12 -> 15.61 | F24: $/hr | G24: =B24*D24*E24*B11 -> 187.32
A25: Labor Unloading per Bag | B25: 1.2 | C25: hrs/bag | D25: 2 | E25: =B12 -> 15.61 | F25: $/hr | G25: =B25*D25*E25*B11 -> 187.32
A26: Machinery Repair & Maintenance | B26: =M7 -> 2248.24 | C26: $ | D26: - | E26: - | F26: $ | G26: =B26 -> 2248.24
A27: Machinery Fuel & Lubrication | B27: =O7 -> 180.606672 | C27: $ | D27: - | E27: - | F27: $ | G27: =B27 -> 180.606672
A28: Bag Sealing | B28: =B11 -> 5 | C28: bags | D28: - | E28: 15 | F28: $/bag | G28: =E28*B28 -> 75
A29: Insecticides | B29: =(B6/1000)*10 -> 800 | C29: lb | D29: - | E29: 2 | F29: $/lb | G29: =B29*E29 -> 1600
A30: Sensors | B30: 2 | C30: # per bag | D30: - | E30: 15 | F30: $/Sensor | G30: =+B30*B11*E30 -> 150
A31: Labor - Bag Repair and Monitoring | B31: 2 | C31: hrs/bag | D31: - | E31: =B12 -> 15.61 | F31: $/hr | G31: =E31*B31*B11 -> 156.1
A32: Bag Disposal/Ton | B32: =B11 -> 5 | C32: bags | D32: - | E32: 25 | F32: $/ton | G32: =B11*B9/2000*E32 -> 28.125
A33: Operating Interest | G33: =SUM(G22:G32)*0.5*B14 -> 258.4427918
A34: Total Operating Costs | G34: =SUM(G22:G33) -> 10596.15446 | H34: =G34/B6 -> 0.1324519308
A35: Ownership Costs
A36: Capital Recovery (Depreciation + Interest) | G36: =L7 -> 11498.5102
A37: Taxes, Insurance, and Housing | G37: =N7 -> 1124.12
A38: Total Ownership Costs | G38: =SUM(G36:G37) -> 12622.6302 | H38: =G38/B6 -> 0.1577828775
A39: Shrink/Storage Loss | G39: =B6*B18*B7 -> 8000 | H39: =G39/B6 -> 0.1
A40: Operating + Ownership + Shrink/Storage Loss Costs | G40: =G38+G34+G39 -> 31218.78466 | H40: =G40/B6 -> 0.3902348083
A42: Footnotes:
A43: Cell | B43: Explanation
A44: Cell B7 | B44: Current estimated harvest price for corn.
A45: Cell B8&9&10 | B45: Bag dimensions 10' x 325'.
A46: Cell B12 | B46: Average hourly wage for support activities for crop production.
A47: Cell B13 | B47: Average gallon price of farm diesel delivered.
A48: Cell B14 | B48: Average fixed operation loan according to Federal Reserve Bank of Kansas City – National Survey of Terms of Lending to Farmers.
A49: Cell B15 | B49: Average fixed intermediate loan according to Federal Reserve Bank of Kansas City – National Survey of Terms of Lending to Farmers.
A50: Cell B16 | B50: Estimated cost according to Iowa State. https://www.extension.iastate.edu/agdm/crops/html/a3-29.html
A51: Cell B17 | B51: Estimated cost according to Iowa State. https://www.extension.iastate.edu/agdm/crops/html/a3-29.html
A52: Cell B18 | B52: Estimated loss and spoilage for placing grain in a bag.
A53: Cell F4 | B53: MSRP for loftness 10 ft xl bagger.
A54: Cell F5 | B54: MSRP for loftness 10 ft bag unloader.
A55: Cell F6 | B55: Estimated tractor price
A56: Cell G9 | B56: Estimated percent of yearly tractor usage to bag and unload grain.
A57: Cell E22 | B57: Cost to knock down stalks with grain cart.
A58: Cell B26 | B58: Estimated cost according to Iowa State. https://www.extension.iastate.edu/agdm/crops/html/a3-29.html
A59: Cell B27 | B59: Estimated cost according to ASABE (Agricultural Machinery Management).
A60: Cell G37 | B60: Estimated cost according to ASABE (Agricultural Machinery Management).
A61: Cell G38 | B61: Estimated cost according to Iowa State. https://www.extension.iastate.edu/agdm/crops/html/a3-29.html

Sheet Bin
A1: Grain Bin Storage Estimate
A2: Table 4. Assumptions | E2: Table 5. Construction Costs | I2: Table 6. Construction Costs | O2: Capital Recovery ($/Year) | P2: Repairs and Maintenance ($/Year) | Q2: Taxes, Insurance, and Housing ($/Year) | R2: Fuel & Lubrication
F3: Price | I3: Machinery | J3: Purchase Price ($) | K3: Useful Life (years) | L3: Salvage Value ($) | N3: Tractor Auger | O3: =(J4-L4)*($B$13/(1-(1+$B$13)^-K4))+(L4*$B$13) -> 553.9377466 | P3: =(J4+L4)/2*B15 -> 97.65 | Q3: =(J4+L4)/2*$B$14 -> 48.825 | R3: -
A4: Select Bin Size | B4: 80000 | C4: Bushels | E4: Bin (Tank) | F4: 99123.21 | I4: Truck Auger | J4: 4650 | K4: 10 | L4: =J4*0.05 -> 232.5 | N4: Fill Auger | O4: =(J5-L5)*($B$13/(1-(1+$B$13)^-K5))+(L5*$B$13) -> 2373.593462 | P4: =(J5+L5)/2*B15 -> 418.425 | Q4: =(J5+L5)/2*$B$14 -> 209.2125 | R4: -
E5: Floor | F5: 38618.14 | I5: Fill Auger | J5: 19925 | K5: 10 | L5: =J5*0.05 -> 996.25 | N5: Tractor | O5: =((J6-L6)*($B$13/(1-(1+$B$13)^-K6))+(L6*$B$13))*K10 -> 537.1613271 | P5: =(J6+L6)/2*B15*K10 -> 135 | Q5: =((J6+L6)/2*$B$14)*K10 -> 67.5 | R5: =(0.06*J9*0.73*((B21+B22)*B11)*1.15) -> 2408.08896
B6: Value | C6: Unit | E6: Fan | F6: 15129.1 | I6: Tractor | J6: 125000 | K6: 15 | L6: 10000 | N6: Bin | O6: =((J7-L7)*($B$13/(1-(1+$B$13)^-K7))+(L7*$B$13)) -> 12855.76381 | P6: =(J7+L7)/2*B16 -> 1004.16885 | Q6: =((J6+L6)/2*$B$14)*K10 -> 67.5 | R6: -
A7: Estimated price | B7: 5 | C7: $/bu | E7: Sweep Auger | F7: 13246.02 | I7: Bin | J7: =G17 -> 200833.77 | K7: 25 | L7: 0 | N7: Total Machinery Costs | O7: =SUM(O3:O6) -> 16320.45635 | P7: =SUM(P3:P6) -> 1655.24385 | Q7: =SUM(Q3:Q6) -> 393.0375 | R7: =SUM(R3:R6) -> 2408.08896
A8: Bin Size | B8: =B4 -> 80000 | C8: bu | E8: Additional Options | F8: 7293.18
A9: Bin Price | B9: =G17 -> 200833.77 | C9: $/bin | E9: Labor | F9: 32000 | I9: Tractor PTO HP | J9: 120 | O9: ASABE Agricultural Machinery Management | P9: Iowa State https://www.extension.iastate.edu/agdm/crops/html/a3-29.html | Q9: Iowa State https://www.extension.iastate.edu/agdm/crops/html/a3-29.html | R9: ASABE Agricultural Machinery Management
A10: Labor Rate | B10: 15.61 | C10: $/hr | E10: Freight | F10: 3600 | I10: Share of Tractor Annual Use | K10: 0.05
A11: Diesel Price | B11: 2.49 | C11: $/gallon | E11: Discount | F11: -21676.21
A12: Interest Rate (Operating) | B12: 0.05 | C12: % | F12: Bin Total | G12: =SUM(F4:F11) -> 187333.44
A13: Interest Rate (Fixed) | B13: 0.04 | C13: % | F13: Concrete | G13: 10934
A14: Taxes, Insurance, & Housing | B14: 0.02 | C14: % of purchase price | F14: Gravel | G14: 566.33 | P14: Level | Q14: 67719 | R14: bu
A15: Machinery - Repair and Maintenance | B15: 0.04 | C15: % of purchase price | F15: Site Prep | G15: 500 | N15: Bin Size | P15: Peaked | Q15: 80327 | R15: bu
A16: Bin - Repair and Maintenance | B16: 0.01 | C16: % of purchase price | F16: Electrical | G16: 1500 | N16: 10000
A17: Estimated Shrinkage/Spoilage | B17: 0.01 | C17: % | F17: Total: | G17: =SUM(G12:G16) -> 200833.77 | N17: 20000
A18: Table 7. Estimated Costs | N18: 40000
A19: Operating Costs | B19: Quantity | C19: Unit | D19: Cost per unit | E19: Unit | F19: Total Cost | G19: $/bu | N19: 60000
A20: Site Maintenance | B20: 1 | C20: bin | D20: 500 | E20: $/bin | F20: =B20*D20 -> 500 | N20: 80000
A21: Labor Loading | B21: 80 | C21: hrs/bin | D21: =B10 -> 15.61 | E21: $/hr | F21: =B21*D21 -> 1248.8
A22: Labor Unloading | B22: 80 | C22: hrs/bin | D22: =B10 -> 15.61 | E22: $/hr | F22: =B22*D22 -> 1248.8
A23: Repair & Maintenance | B23: =P7 -> 1655.24385 | C23: $ | D23: - | E23: $ | F23: =B23 -> 1655.24385
A24: Machinery Fuel & Lubrication | B24: =R7 -> 2408.08896 | C24: $ | D24: - | E24: $ | F24: =B24 -> 2408.08896
A25: Insecticides | B25: 800 | C25: lb | D25: 2 | E25: $/lb | F25: =B25*D25 -> 1600
A26: Sensors | B26: 8 | C26: # per bin | D26: 15 | E26: $/sensor | F26: =B26*D26 -> 120
A27: Labor - Bin Repair and Monitoring | B27: 1 | C27: hrs/bin | D27: =B10 -> 15.61 | E27: $/hr | F27: =B27*D27 -> 15.61
A28: Operating Interest | F28: =SUM(F20:F27)*0.5*B12 -> 219.9135703
A29: Total Operating Costs | F29: =SUM(F20:F28) -> 9016.45638 | G29: =F29/B8 -> 0.1127057048
A30: Ownership Costs
A31: Capital Recovery (Depreciation + Interest) | F31: =O7 -> 16320.45635
A32: Taxes, Insurance, and Housing | F32: =Q7 -> 393.0375
A33: Total Ownership Costs | F33: =SUM(F31:F32) -> 16713.49385 | G33: =F33/B8 -> 0.2089186731
A34: Shrink/Storage Loss | F34: =B8*B7*B17 -> 4000 | G34: =F34/B8 -> 0.05
A35: Operating + Ownership + Shrink/Storage Loss Costs | F35: =F33+F29+F34 -> 29729.95023 | G35: =F35/B8 -> 0.3716243778
A37: Footnotes:
A38: Cell | B38: Explanation
A39: Cell B9 | B39: Estimated price for bin
A40: Cell B10 | B40: Average hourly wage for support activities for crop production.
A41: Cell B11 | B41: Average gallon price of farm diesel delivered.
A42: Cell B12 | B42: Average fixed operation loan according to Federal Reserve Bank of St. Louis- Eighth Federal Reserve District Survey.
A43: Cell B13 | B43: Average fixed intermediate loan according to Federal Reserve Bank of St. Louis- Eighth Federal Reserve District Survey.
A44: Cell B14 | B44: Estimated cost according to Iowa State. https://www.extension.iastate.edu/agdm/crops/html/a3-29.html
A45: Cell B15 | B45: Estimated cost according to Iowa State. https://www.extension.iastate.edu/agdm/crops/html/a3-29.html
A46: Cell B17 | B46: Estimated loss and spoilage for placing grain in a bin.
A47: Cell F4 | B47: Estimated price for just the bin tank.
A48: Cell F5 | B48: Estimated price for grain bin floor.
A49: Cell F6 | B49: Estimated price for the fan(s) for bin.
A50: Cell F7 | B50: Estimated price for sweep auger.
A51: Cell F8 | B51: Estimated price for stairs/ladders, doors and other accessories.
A52: Cell F9 | B52: Estimated price for grain bin labor.
A53: Cell F10 | B53: Estimated freight.
A54: Cell F11 | B54: Estimated discount off book quote price for cells F4-F10.
A55: Cell J4 | B55: Estimated truck auger purchase price.
A56: Cell J5 | B56: Estimated fill auger purchase price.
A57: Cell J6 | B57: Estimated bin cost from G17.
A58: Cell K10 | B58: Estimated percent of yearly tractor usage to bag and unload grain.
A59: Cell G13 | B59: Estimated cost for concrete for bin.
A60: Cell G14 | B60: Estimated cost for gravel to place a 3 foot radius around bin 3 inches deep.
A61: Cell G15 | B61: Estimated cost of supplies and labor.
A62: Cell B23 | B62: Estimated cost according to Iowa State. https://www.extension.iastate.edu/agdm/crops/html/a3-29.html
A63: Cell B24 | B63: Estimated cost according to ASABE (Agricultural Machinery Management).
A64: Cell G31 | B64: Estimated cost according to ASABE (Agricultural Machinery Management).
A65: Cell G32 | B65: Estimated cost according to Iowa State. https://www.extension.iastate.edu/agdm/crops/html/a3-29.html

Sheet Size (hidden)
B2: Capacity | C2: 10000 | D2: 20000 | E2: 40000 | F2: 60000 | G2: 80000
B3: Bin | C3: 18246.83 | D3: 32993.77 | E3: 56218.81 | F3: 85802.57 | G3: 99123.21 | I3: =HLOOKUP(+Bin!$B$4,$B$2:$G$27,2,FALSE) -> 99123.21
B4: Floor | C4: 6153.84 | D4: 10617.22 | E4: 19681.72 | F4: 31608.74 | G4: 38618.14 | I4: =HLOOKUP(+Bin!$B$4,$B$2:$G$27,3,FALSE) -> 38618.14
B5: Fan | C5: 4053.91 | D5: 4629.97 | E5: 9729.16 | F5: 9109.01 | G5: 15129.1 | I5: =HLOOKUP(+Bin!$B$4,$B$2:$G$27,4,FALSE) -> 15129.1
B6: Sweep Auger | C6: 5410.93 | D6: 6069.28 | E6: 7087.41 | F6: 12660.91 | G6: 13246.02 | I6: =HLOOKUP(+Bin!$B$4,$B$2:$G$27,5,FALSE) -> 13246.02
B7: Additional Options | C7: 7166.22 | D7: 5390.89 | E7: 6334.42 | F7: 6989.6 | G7: 7293.18 | I7: =HLOOKUP(+Bin!$B$4,$B$2:$G$27,6,FALSE) -> 7293.18
B8: Labor | C8: 12900 | D8: 11000 | E8: 18200 | F8: 26000 | G8: 32000 | I8: =HLOOKUP(+Bin!$B$4,$B$2:$G$27,7,FALSE) -> 32000
B9: Freight | C9: 1900 | D9: 1800 | E9: 1800 | F9: 3600 | G9: 3600 | I9: =HLOOKUP(+Bin!$B$4,$B$2:$G$27,8,FALSE) -> 3600
B10: Discount | C10: -5128.89 | D10: -7462.64 | E10: -12381.44 | F10: -18271.35 | G10: -21676.21 | I10: =HLOOKUP(+Bin!$B$4,$B$2:$G$27,9,FALSE) -> -21676.21
B11: Bin Total | C11: =SUM($C$3:$C$10) -> 50702.84 | D11: =SUM(D3:D10) -> 65038.49 | E11: =SUM(E3:E10) -> 106670.08 | F11: =SUM(F3:F10) -> 157499.48 | G11: =SUM(G3:G10) -> 187333.44 | I11: =HLOOKUP(+Bin!$B$4,$B$2:$G$27,10,FALSE) -> 187333.44
B12: Concrete | C12: =16*142 -> 2272 | D12: =30*142 -> 4260 | E12: 6958 | F12: 8520 | G12: =77*142 -> 10934 | I12: =HLOOKUP(+Bin!$B$4,$B$2:$G$27,11,FALSE) -> 10934
B13: Gravel | C13: 246.53 | D13: 276.33 | E13: 410 | F13: 485.33 | G13: 566.33 | I13: =HLOOKUP(+Bin!$B$4,$B$2:$G$27,12,FALSE) -> 566.33
B14: Site Prep | C14: 500 | D14: 500 | E14: 500 | F14: 500 | G14: 500 | I14: =HLOOKUP(+Bin!$B$4,$B$2:$G$27,13,FALSE) -> 500
B15: Electrical | C15: 1500 | D15: 1500 | E15: 1500 | F15: 1500 | G15: 1500 | I15: =HLOOKUP(+Bin!$B$4,$B$2:$G$27,14,FALSE) -> 1500
B16: Total Fixed Cost | C16: =SUM($C$11:$C$15) -> 55221.37 | D16: =SUM(D11:D15) -> 71574.82 | E16: =SUM(E11:E15) -> 116038.08 | F16: =SUM(F11:F15) -> 168504.81 | G16: =SUM(G11:G15) -> 200833.77 | I16: =HLOOKUP(+Bin!$B$4,$B$2:$G$27,15,FALSE) -> 200833.77
A17: Machinery PP | B17: Truck Auger | C17: 4650 | D17: 4650 | E17: 4650 | F17: 4650 | G17: 4650 | I17: =HLOOKUP(+Bin!$B$4,$B$2:$G$27,16,FALSE) -> 4650
B18: Fill Auger | C18: 14300 | D18: 14300 | E18: 15750 | F18: 17600 | G18: 19925 | I18: =HLOOKUP(+Bin!$B$4,$B$2:$G$27,17,FALSE) -> 19925
B19: Tractor | C19: 125000 | D19: 125000 | E19: 125000 | F19: 125000 | G19: 125000 | I19: =HLOOKUP(+Bin!$B$4,$B$2:$G$27,18,FALSE) -> 125000
B20: Bin | C20: 55221 | D20: =D16 -> 71574.82 | E20: =E16 -> 116038.08 | F20: =F16 -> 168504.81 | G20: =G16 -> 200833.77 | I20: =HLOOKUP(+Bin!$B$4,$B$2:$G$27,19,FALSE) -> 200833.77
A21: Other | B21: Labor Loading | C21: 10 | D21: 20 | E21: 40 | F21: 60 | G21: 80 | I21: =HLOOKUP(+Bin!$B$4,$B$2:$G$27,20,FALSE) -> 80
B22: Labor Unloading | C22: 10 | D22: 20 | E22: 40 | F22: 60 | G22: 80 | I22: =HLOOKUP(+Bin!$B$4,$B$2:$G$27,21,FALSE) -> 80
B23: Labor Bin Repair/monitor | C23: 1 | D23: 1 | E23: 1 | F23: 1 | G23: 1 | I23: =HLOOKUP(+Bin!$B$4,$B$2:$G$27,22,FALSE) -> 1
B24: Insecticides | C24: =10*(C2/1000) -> 100 | D24: =10*(D2/1000) -> 200 | E24: 400 | F24: 600 | G24: 800 | I24: =HLOOKUP(+Bin!$B$4,$B$2:$G$27,23,FALSE) -> 800
B25: Sensors | C25: 1 | D25: 2 | E25: 4 | F25: 6 | G25: 8 | I25: =HLOOKUP(+Bin!$B$4,$B$2:$G$27,24,FALSE) -> 8
B26: Level | C26: 10173 | D26: 21232 | E26: 43340 | F26: 54853 | G26: 67719 | I26: =HLOOKUP(+Bin!$B$4,$B$2:$G$27,25,FALSE) -> 67719
B27: Peaked | C27: 11322 | D27: 23956 | E27: 49796 | F27: 64044 | G27: 80327 | I27: =HLOOKUP(+Bin!$B$4,$B$2:$G$27,26,FALSE) -> 80327

Sheet 10000 bu bin (hidden)
A1: Variable Cost | C1: Hours | D1: Cost/Hour | E1: Total Cost
A2: Tractor | C2: 10 | D2: 28.5 | E2: =C2*D2 -> 285 | J2: Storage
A3: Transportation | J3: Level | K3: 10173 | L3: bu
A4: Labor/Year | J4: Peaked | K4: 11322 | L4: bu
A5: Shrinkage/Spoilage
A7: Bin Costs | C7: 10000 | D7: 20000
A8: Bin | C8: 18246.83
A9: Floor | C9: 6153.84
A10: Fan | C10: 4053.91
A11: Sweep Auger | C11: 5410.93
A12: Additional Options | C12: 7166.22
A13: Labor | C13: 12900
A14: Freight | C14: 1900
A15: Discount | C15: -5128.89 | K15: 40 per cubic yard for gravel
B16: Bin Total | D16: =SUM($C$8:$C$15) -> 50702.84
B17: Concrete | D17: =16*142 -> 2272
B18: Gravel | D18: 246.53
B19: Site Prep | D19: 500
B20: Eletrical
B21: Depreciation/year | D21: 1388.114
B22: Interest/year | D22: =0.0488*$D$21 -> 67.7399632
B23: Insurance/year
B24: Taxes/year
B25: Total Fixed Cost | D25: =SUM($D$16:$D$24) -> 55177.22396
A27: Depreciation | C27: Intial Cost | D27: Salvage Value | E27: Useful Life | F27: Depreciation/Year
B28: Bin | C28: =$D$16-SUM($C$13:$C$14) -> 35902.84 | D28: 0 | E28: 25 | F28: =(C28-D28)/E28 -> 1436.1136
B29: Truck Auger | C29: 4650 | D29: 0 | E29: 10 | F29: =(C29-D29)/E29 -> 465
B30: Fill Auger | C30: 14300 | D30: 0 | E30: 10 | F30: 1430 | N30: kk

Sheet 20000 bu bin (hidden)
A1: Variable Cost | C1: Hours | D1: Cost/Hour | E1: Total Cost
A2: Tractor | C2: 20 | D2: 28.5 | E2: =C2*D2 -> 570 | J2: Storage
A3: Transportation | E3: =C3*D3 -> 0 | J3: Level | K3: 21232 | L3: bu
A4: Labor/Year | C4: 20 | D4: 16.38 | E4: 327.6 | J4: Peaked | K4: 23956 | L4: bu
A5: Shrinkage/Spoilage
A7: Bin Costs
A8: Bin | C8: 32993.77
A9: Floor | C9: 10617.22
A10: Fan | C10: 4629.97
A11: Sweep Auger | C11: 6069.28
A12: Additional Options | C12: 5390.89
A13: Labor | C13: 11000
A14: Freight | C14: 1800
A15: Discount | C15: -7462.64
B16: Bin Total | D16: =SUM(C8:C15) -> 65038.49
B17: Concrete | D17: =30*142 -> 4260
B18: Gravel | D18: 276.33
B19: Site Prep | D19: 500
B20: Eletrical
B21: Depreciation/year | D21: 2005.54
B22: Interest/year | D22: =0.0488*D21 -> 97.870352
B23: Insurance
B24: Taxes
B25: Total Fixed Cost | D25: =SUM(D16:D24) -> 72178.23035
A27: Depreciation | C27: Intial Cost | D27: Salvage Value | E27: Useful Life | F27: Depreciation/Year
B28: Bin | C28: =D16-SUM(C13:C14) -> 52238.49 | D28: 0 | E28: 25 | F28: =(C28-D28)/E28 -> 2089.5396
B29: Truck Auger | C29: 4650 | D29: 0 | E29: 10 | F29: =(C29-D29)/E29 -> 465
B30: Fill Auger | C30: 14300 | D30: 0 | E30: 10 | F30: 1430

Sheet 40000 bu bin (hidden)
A1: Variable Costs | D1: Hours | E1: Cost/Hour | F1: Total Cost
A2: Tractor | C2: 40 | D2: 28.5 | E2: =C2*D2 -> 1140 | J2: Storage
A3: Transportation | E3: =C3*D3 -> 0 | J3: Level | K3: 43340 | L3: bu
A4: Labor/Year | C4: 40 | D4: 16.38 | E4: 655.2 | J4: Peaked | K4: 49796 | L4: bu
A5: Shrinkage/Spoilage
A7: Bin Cost
A8: Bin | C8: 56218.81
A9: Floor | C9: 19681.72
A10: Fan | C10: 9729.16
A11: Sweep Auger | C11: 7087.41
A12: Additional Options | C12: 6334.42
A13: Labor | C13: 18200
A14: Freight | C14: 1800
A15: Discount | C15: -12381.44
B16: Bin Total | D16: =SUM(C8:C15) -> 106670.08
B17: Concrete | D17: 6958
B18: Gravel | D18: 410
B19: Site Prep | D19: 500
B20: Eletrical
B21: Depreciation/year | D21: 3318.8
B22: Interest/year | D22: =0.0488*D21 -> 161.95744
B23: Insurance
B24: Taxes
B25: Total Fixed Cost | D25: =SUM(D16:D24) -> 118018.8374
A27: Depreciation | C27: Intial Cost | D27: Salvage Value | E27: Useful Life | F27: Depreciation/Year
B28: Bin | C28: =D16-SUM(C13:C14) -> 86670.08 | D28: 0 | E28: 25 | F28: =(C28-D28)/E28 -> 3466.8032
B29: Truck Auger | C29: 4650 | D29: 0 | E29: 10 | F29: =(C29-D29)/E29 -> 465
B30: Fill Auger | C30: 15750 | D30: 0 | E30: 10 | F30: 1575

Sheet 60000 bu bin (hidden)
A1: Variable Cost | C1: Hours | D1: Cost/Hour | E1: Total Cost
A2: Tractor/year | C2: =1710/28.5 -> 60 | D2: 28.5 | E2: =C2*D2 -> 1710 | J2: Storage
A3: Transportation | E3: =C3*D3 -> 0 | J3: Level | K3: 54853 | L3: bu
A4: Labor/Year | C4: 60 | D4: 16.38 | E4: 982.8 | J4: Peaked | K4: 64044 | L4: bu
A5: Shrinkage/ Spoilage
A7: Bin Cost
A8: Bin | C8: 85802.57
A9: Floor | C9: 31608.74
A10: Fan | C10: 9109.01
A11: Sweep Auger | C11: 12660.91
A12: Additional Options | C12: 6989.6
A13: Labor | C13: 26000
A14: Freight | C14: 3600
A15: Discount | C15: -18271.35
B16: Bin Total | D16: =SUM(C8:C15) -> 157499.48
B17: Concrete | D17: 8520
B18: Gravel | D18: 485.33
B19: Site Prep | D19: 500
B20: Eletrical
B21: Depreciation/Year | D21: 4907.98
B22: Interest/Year | D22: =0.0488*D21 -> 239.509424
B23: Insurance
B24: Taxes
B25: Total Fixed Cost | D25: =SUM(D16:D24) -> 172152.2994
A27: Depreciation | C27: Intial Cost | D27: Salvage Value | E27: Useful Life | F27: Depreciation/Year
B28: Bin | C28: =D16-SUM(C13:C14) -> 127899.48 | D28: 0 | E28: 25 | F28: =(C28-D28)/E28 -> 5115.9792
B29: Truck Auger | C29: 4650 | D29: 0 | E29: 10 | F29: =(C29-D29)/E29 -> 465
B30: Fill Auger | C30: 17600 | D30: 0 | E30: 10 | F30: 1760

Sheet 80000 bu bin (hidden)
A1: Variable Cost | C1: Hours | D1: Cost/Hour | E1: Total Cost
A2: Tractor/year | C2: 80 | D2: 28.5 | E2: =C2*D2 -> 2280 | J2: Storage
A3: Transportation | E3: =C3*D3 -> 0 | J3: Level | K3: 67719 | L3: bu
A4: Labor/Year | C4: 80 | D4: 16.38 | E4: 1310.4 | J4: Peaked | K4: 80327 | L4: bu
A5: Shrinkage/Spoilage
A7: Bin Cost
A8: Bin | C8: 99123.21
A9: Floor | C9: 38618.14
A10: Fan | C10: 15129.1
A11: Sweep Auger | C11: 13246.02
A12: Additional Options | C12: 7293.18
A13: Labor | C13: 32000
A14: Freight | C14: 3600
A15: Discount | C15: -21676.21
B16: Bin Total | D16: =SUM(C8:C15) -> 187333.44
B17: Concrete | D17: =77*142 -> 10934
B18: Gravel | D18: 566.33
B19: Site Prep | D19: 500
B20: Eletrical
B21: Depreciation/Year
B22: Interest/Year
B23: Insurance
B24: Taxes
B25: Total Fixed Cost | D25: =SUM(D16:D24) -> 199333.77
A27: Depreciation | C27: Intial Cost | D27: Salvage Value | E27: Useful Life | F27: Depreciation/Year
B28: Bin | C28: =D16-SUM(C13:C14) -> 151733.44 | D28: 0 | E28: 25 | F28: =(C28-D28)/E28 -> 6069.3376
B29: Auger

Sheet Bin Costs (hidden)
B1: Grain Bin Cost
H3: Number of Bushels Stored | K3: 60000
A4: Fixed Costs
B5: Grain Bin Cost
B6: Concrete
B7: Gravel
B8: Site Prep
B9: Eletrical
B10: Depreciation
B11: Interest | D11: 0.0488 | F11: https://www.dtnpf.com/agriculture/web/ag/news/business-inputs/article/2021/05/04/farm-credit-rates
B12: Insurance
B13: Load Out Bin
B14: Taxes
B15: Total Fixed Cost
A18: Machinery Costs
B19: Tractor | D19: 124000 | F19: https://configure.deere.com/cbyo/#/en_us/configure/117649354 | M19: Johndeere 6130m
B20: Grain Dryer
B21: Leg
B22: Pit
B23: Auger | D23: 14000 | H23: rough estimate from tractor house on new 19 1080hp brandt
B24: Transportation
B25: Fan | D25: 9000 | J25: using 2 20 hp gsi fans
B26: Sweep Auger
B27: Load Out Auger
B28: Total Machinery Costs
A31: Variable Costs
B32: Shrinkage | D32: 0.02
B33: Spoilage | D33: 0.02
B34: Handling Loss | D34: 0.005 | F34: kentucky number
B35: Insecticides
B36: Eletricty | D36: 2400 | I36: for 2 20 hp fan rough estimate found on thread needs to be confirmed
B37: Propane/Natural Gas
B38: Repairs
B39: Labor/hour | D39: 16.38 | H39: https://www.bls.gov/oes/current/oes452091.htm
B40: Total Variable Costs

Sheet Sheet1 (hidden)
A1: 10000 | D1: 20000 | G1: 40000 | J1: 60000 | M1: 80000
A2: Intial Cost | B2: =50702.84 -> 50702.84 | D2: Intial Cost | E2: 65038.49 | G2: Intial Cost | H2: =106670.08 -> 106670.08 | J2: Intial Cost | K2: =157499.48 -> 157499.48 | M2: Intial Cost
A3: concerete | B3: 1600 | D3: concrete | E3: 3000 | G3: concrete | H3: 4900 | J3: concrete | K3: 6000 | M3: cocrete
